bitfinex-derivatives/quotes_BTCF0:USTF0_20251220
["timestamp","ask_amount","ask_price","bid_price","bid_amount"]
[1766256731139,0.02567669,88241.0,88230.0,0.22855874]
[1766256731340,0.02836,88244.0,88230.0,0.22855874]
[1766256731557,0.02567679,88243.0,88230.0,0.22855874]
[1766256731746,0.02567679,88242.0,88230.0,0.22855874]
[1766256731940,0.02567679,88241.0,88230.0,0.22855874]
[1766256732139,0.02836,88244.0,88230.0,0.22855874]
[1766256732342,0.02567693,88243.0,88230.0,0.22855874]
[1766256732646,0.02567693,88242.0,88230.0,0.22855874]
[1766256732838,0.02567693,88241.0,88230.0,0.22855874]
[1766256733040,0.02836,88244.0,88230.0,0.22855874]
[1766256733241,0.02567693,88243.0,88230.0,0.22855874]
[1766256733442,0.02567693,88242.0,88230.0,0.22855874]
[1766256733645,0.02567693,88241.0,88230.0,0.22855874]
[1766256733839,0.02836,88244.0,88230.0,0.22855874]
[1766256734041,0.02567711,88243.0,88230.0,0.22855874]
[1766256734340,0.02567711,88242.0,88230.0,0.22855874]
[1766256734538,0.02567711,88241.0,88230.0,0.22855874]
[1766256734847,0.02836,88244.0,88230.0,0.22855874]
[1766256735049,0.02567733,88243.0,88230.0,0.22855874]
[1766256735244,0.02567733,88242.0,88230.0,0.22855874]
[1766256735444,0.02567733,88241.0,88230.0,0.22855874]
[1766256735647,0.02836,88244.0,88230.0,0.22855874]
[1766256735847,0.02567751,88243.0,88230.0,0.22855874]
[1766256736046,0.02567751,88242.0,88230.0,0.22855874]
[1766256736249,0.02567751,88241.0,88230.0,0.22855874]
[1766256736449,0.02836,88244.0,88230.0,0.22855874]
[1766256736651,0.0256777,88243.0,88230.0,0.22855874]
[1766256736846,0.0256777,88242.0,88230.0,0.22855874]
[1766256737145,0.0256777,88241.0,88230.0,0.22855874]
[1766256737346,0.02836,88244.0,88230.0,0.22855874]
[1766256737551,0.02567794,88243.0,88230.0,0.22855874]
[1766256737753,0.02567794,88242.0,88230.0,0.22855874]
[1766256737952,0.02567794,88241.0,88230.0,0.22855874]
[1766256738153,0.02836,88244.0,88230.0,0.22855874]
[1766256738453,0.02567819,88243.0,88230.0,0.22855874]
[1766256738648,0.02567819,88242.0,88230.0,0.22855874]
[1766256738848,0.02567819,88241.0,88230.0,0.22855874]
[1766256739059,0.02836,88244.0,88230.0,0.22855874]
[1766256739253,0.02567852,88243.0,88230.0,0.22855874]
[1766256739445,0.02567852,88242.0,88230.0,0.22855874]
[1766256739646,0.02836,88244.0,88230.0,0.22855874]
[1766256739856,0.02567853,88243.0,88230.0,0.22855874]
[1766256740156,0.02836,88244.0,88230.0,0.22855874]
[1766256740356,0.02567896,88243.0,88230.0,0.22855874]
[1766256740556,0.02836,88244.0,88230.0,0.22855874]
[1766256740756,0.02567896,88243.0,88230.0,0.22855874]
[1766256740958,0.02836,88244.0,88231.0,0.02836]
[1766256741159,0.02567896,88243.0,88231.0,0.02836]
[1766256741358,0.02836,88244.0,88231.0,0.02836]
[1766256741559,0.02567949,88243.0,88231.0,0.02836]
[1766256741761,0.02836,88244.0,88231.0,0.02836]
[1766256741955,0.02567949,88243.0,88231.0,0.02836]
[1766256742156,0.02836,88244.0,88231.0,0.02836]
[1766256742358,0.02568061,88243.0,88231.0,0.02836]
[1766256742559,0.02836,88244.0,88231.0,0.02836]
[1766256742759,0.02568061,88243.0,88231.0,0.02836]
[1766256742960,0.02836,88244.0,88231.0,0.02836]
[1766256743164,0.02568061,88243.0,88231.0,0.02836]
[1766256743360,0.02836,88244.0,88231.0,0.02836]
[1766256743661,0.02568128,88243.0,88231.0,0.02836]
[1766256743862,0.02836,88244.0,88231.0,0.02836]
[1766256744063,0.02568128,88243.0,88231.0,0.02836]
[1766256744264,0.02836,88244.0,88231.0,0.02836]
[1766256744563,0.02568134,88243.0,88231.0,0.02836]
[1766256744762,0.02836,88244.0,88231.0,0.02836]
[1766256744963,0.02568134,88243.0,88231.0,0.02836]
[1766256745263,0.02836,88244.0,88231.0,0.02836]
[1766256745462,0.02568135,88243.0,88231.0,0.02836]
[1766256745664,0.02836,88244.0,88231.0,0.02836]
[1766256745863,0.02561891,88243.0,88231.0,0.02836]
[1766256746063,0.02836,88244.0,88231.0,0.02836]
[1766256746264,0.02561893,88243.0,88231.0,0.02836]
[1766256746460,0.02836,88244.0,88231.0,0.02836]
[1766256746660,0.02561893,88243.0,88231.0,0.02836]
[1766256746862,0.02836,88244.0,88231.0,0.02836]
[1766256747064,0.02561893,88243.0,88231.0,0.02836]
[1766256747360,0.02836,88244.0,88231.0,0.02836]
[1766256747560,0.02561896,88243.0,88231.0,0.02836]
[1766256747752,0.02836,88244.0,88231.0,0.02836]
[1766256747952,0.02561896,88243.0,88231.0,0.02836]
[1766256748153,0.02836,88244.0,88231.0,0.02836]
[1766256748356,0.02561896,88243.0,88231.0,0.02836]
[1766256748565,0.02836,88244.0,88231.0,0.02836]
[1766256749567,0.02561808,88243.0,88231.0,0.02836]
[1766256749761,0.02561808,88242.0,88231.0,0.02836]
[1766256749967,0.02561808,88241.0,88231.0,0.02836]
[1766256750169,0.02836,88244.0,88231.0,0.02836]
[1766256750464,0.06116973,88262.0,88231.0,0.02836]
[1766256750765,0.06116973,88262.0,88250.0,0.22855416]
[1766256750766,0.011335,88262.0,88250.0,0.22855416]
[1766256751168,0.011335,88262.0,88246.0,0.02836]
[1766256751368,0.0113354,88259.0,88246.0,0.02836]
[1766256755077,0.0113358,88256.0,88246.0,0.02836]
[1766256758778,0.0113352,88260.0,88246.0,0.02836]
[1766256762379,0.0113356,88257.0,88246.0,0.02836]
[1766256764373,0.01892,88263.0,88246.0,0.02836]
[1766256765278,0.011335,88262.0,88246.0,0.02836]
[1766256773487,0.01892,88263.0,88246.0,0.02836]
[1766256773882,0.0302548,88263.0,88246.0,0.02836]
[1766256775687,0.01892,88263.0,88246.0,0.02836]
[1766256778192,0.02534606,88262.0,88246.0,0.02836]
[1766256778390,0.01892,88263.0,88246.0,0.02836]
[1766256778690,0.02534606,88262.0,88246.0,0.02836]
[1766256778991,0.01892,88263.0,88246.0,0.02836]
[1766256779180,0.02534606,88262.0,88246.0,0.02836]
[1766256779376,0.02534606,88261.0,88246.0,0.02836]
[1766256779580,0.01892,88263.0,88246.0,0.02836]
[1766256779781,0.02535607,88262.0,88246.0,0.02836]
[1766256779973,0.02535607,88261.0,88246.0,0.02836]
[1766256780188,0.02537965,88260.0,88246.0,0.02836]
[1766256780382,0.02537965,88259.0,88246.0,0.02836]
[1766256780582,0.01892,88263.0,88246.0,0.02836]
[1766256780892,0.02537965,88262.0,88246.0,0.02836]
[1766256781081,0.02537965,88261.0,88246.0,0.02836]
[1766256781381,0.02537965,88260.0,88246.0,0.02836]
[1766256781582,0.02537965,88259.0,88246.0,0.02836]
[1766256781891,0.01892,88263.0,88246.0,0.02836]
[1766256782093,0.02537957,88262.0,88246.0,0.02836]
[1766256782296,0.02537957,88261.0,88246.0,0.02836]
[1766256782481,0.02537957,88260.0,88246.0,0.02836]
[1766256782681,0.02537957,88259.0,88246.0,0.02836]
[1766256782982,0.01892,88263.0,88246.0,0.02836]
[1766256783183,0.02537949,88262.0,88246.0,0.02836]
[1766256783383,0.02537949,88261.0,88246.0,0.02836]
[1766256783584,0.02537949,88260.0,88246.0,0.02836]
[1766256783784,0.02537949,88259.0,88246.0,0.02836]
[1766256783984,0.01892,88263.0,88246.0,0.02836]
[1766256784190,0.02537938,88262.0,88246.0,0.02836]
[1766256784486,0.02537938,88261.0,88246.0,0.02836]
[1766256784685,0.02537938,88260.0,88246.0,0.02836]
[1766256784880,0.02537938,88259.0,88246.0,0.02836]
[1766256785079,0.01892,88263.0,88246.0,0.02836]
[1766256785281,0.0253794,88262.0,88246.0,0.02836]
[1766256785480,0.0253794,88261.0,88246.0,0.02836]
[1766256785681,0.0253794,88260.0,88246.0,0.02836]
[1766256785886,0.0253794,88259.0,88246.0,0.02836]
[1766256786181,0.0253794,88258.0,88246.0,0.02836]
[1766256786477,0.01892,88263.0,88246.0,0.02836]
[1766256786677,0.02537944,88262.0,88246.0,0.02836]
[1766256786876,0.02537944,88261.0,88246.0,0.02836]
[1766256787087,0.02537944,88260.0,88246.0,0.02836]
[1766256787291,0.02537944,88259.0,88246.0,0.02836]
[1766256787493,0.01892,88263.0,88246.0,0.02836]
[1766256787691,0.02537949,88262.0,88246.0,0.02836]
[1766256787996,0.02537949,88261.0,88246.0,0.02836]
[1766256788184,0.01892,88263.0,88247.0,0.0113369]
[1766256788585,0.01892,88263.0,88250.0,0.22845849]
[1766256788784,0.01892,88263.0,88247.0,0.0113369]
[1766256790591,0.28962822,88280.0,88250.0,0.22845849]
[1766256790792,1.44588,88278.0,88250.0,0.22845849]
[1766256791287,0.0113336,88273.0,88250.0,0.22845849]
[1766256791492,0.0113336,88273.0,88251.0,0.0113363]
[1766256793195,0.02836,88272.0,88251.0,0.0113363]
[1766256793395,0.0113331,88277.0,88254.0,0.011336]
[1766256793587,0.0113333,88275.0,88260.0,0.22845849]
[1766256793793,0.0113333,88275.0,88259.0,0.00016996]
[1766256795293,0.02836,88274.0,88259.0,0.00016996]
[1766256799105,0.0113333,88275.0,88259.0,0.00016996]
[1766256799298,0.0056,88274.0,88259.0,0.00016996]
[1766256800291,0.02524392,88273.0,88259.0,0.00016996]
[1766256800498,0.02524392,88272.0,88259.0,0.00016996]
[1766256800697,0.02524392,88271.0,88259.0,0.00016996]
[1766256800896,0.02524392,88270.0,88259.0,0.00016996]
[1766256801093,0.02524392,88269.0,88259.0,0.00016996]
[1766256801298,0.02524392,88268.0,88259.0,0.00016996]
[1766256801500,0.0056,88274.0,88259.0,0.22857215]
[1766256801687,0.02524222,88273.0,88259.0,0.22857215]
[1766256801891,0.02524222,88272.0,88259.0,0.22857215]
[1766256802097,0.02524222,88271.0,88259.0,0.22857215]
[1766256802297,0.02524222,88270.0,88259.0,0.22857215]
[1766256802499,0.02524222,88269.0,88259.0,0.22857215]
[1766256802698,0.02524222,88268.0,88259.0,0.00016996]
[1766256802893,0.0056,88274.0,88259.0,0.00016996]
[1766256803097,0.02524164,88273.0,88259.0,0.00016996]
[1766256803298,0.02524164,88272.0,88259.0,0.00016996]
[1766256803492,0.02524164,88271.0,88260.0,0.22840219]
[1766256803699,0.0056,88274.0,88260.0,0.22840219]
[1766256804000,0.02524074,88273.0,88260.0,0.22840219]
[1766256804202,0.02524074,88272.0,88260.0,0.22840219]
[1766256804399,0.00024074,88271.0,88260.0,0.22840219]
[1766256804696,0.02836,88273.0,88260.0,0.22840219]
[1766256804902,0.01,98300.0,88268.0,0.0113341]
[1766256804903,0.02836,88282.0,88268.0,0.0113341]
[1766256805099,0.0113313,88291.0,88268.0,0.0113341]
[1766256805100,0.02836,88285.0,88268.0,0.0113341]
[1766256805299,0.02836,88285.0,88270.0,0.22840219]
[1766256808505,0.0113313,88291.0,88271.0,0.0113338]
[1766256808704,0.02836,88284.0,88271.0,0.0113338]
[1766256810306,0.02836,88288.0,88274.0,0.23973559]
[1766256810608,0.02836,88294.0,88278.0,0.22840219]
[1766256812206,0.02836,88294.0,88277.0,0.00016996]
[1766256812806,0.01365251,88295.0,88277.0,0.00016996]
[1766256813008,0.02836,88296.0,88280.0,0.22840219]
[1766256813303,0.02836,88296.0,88277.0,0.00016996]
[1766256814118,0.02836,88300.0,88286.0,0.23973399]
[1766256814310,0.02836,88300.0,88290.0,0.22840219]
[1766256815311,0.22840219,88310.0,88290.0,0.22840219]
[1766256815611,0.22840219,88300.0,88291.0,0.02836]
[1766256815810,0.22840219,88300.0,88292.0,0.02836]
[1766256816211,0.02836,88307.0,88292.0,0.039691]
[1766256816508,0.02836,88307.0,88295.0,0.0113306]
[1766256816709,0.02836,88307.0,88297.0,0.22840219]
[1766256816912,0.0113269,88326.0,88298.0,0.02836]
[1766256817111,0.22840219,88320.0,88300.0,0.22840219]
[1766256817404,0.22840219,88320.0,88301.0,0.00016986]
[1766256820512,0.0113277,88319.0,88301.0,0.00016986]
[1766256827519,0.0113288,88310.0,88290.0,0.22840219]
[1766256827814,0.0113288,88310.0,88291.0,0.02836]
[1766256828218,0.00368,88315.0,88283.0,0.0113322]
[1766256828219,0.22840219,88301.0,88283.0,0.0113322]
[1766256828518,0.0113305,88297.0,88283.0,0.00016986]
[1766256829019,0.22840219,88300.0,88283.0,0.00016986]
[1766256829020,0.22840219,88293.0,88283.0,0.00016986]
[1766256829204,0.22840219,88300.0,88283.0,0.00016986]
[1766256829403,0.22840219,88293.0,88283.0,0.00016986]
[1766256830322,0.02836,88298.0,88283.0,0.00016986]
[1766256848329,0.01548,88297.0,88283.0,0.01150206]
[1766256850232,0.00016953,88301.0,88288.0,0.0113316]
[1766256850423,0.00016953,88301.0,88291.0,0.0113312]
[1766256851927,0.00016953,88301.0,88290.0,0.22828929]
[1766256853230,0.00016953,88301.0,88290.0,0.23962059]
[1766256853932,0.00016953,88301.0,88290.0,0.0113313]
[1766256854129,0.00016953,88301.0,88290.0,0.22828929]
[1766256859035,0.00016953,88301.0,88291.0,0.0113312]
[1766256864138,0.00016953,88301.0,88287.0,0.02836]
[1766256865434,0.00016953,88301.0,88288.0,0.0113316]
[1766256873242,0.02836,88306.0,88291.0,0.0113311]
[1766256873946,0.0113289,88310.0,88291.0,0.0113311]
[1766256874156,0.0028,88309.0,88291.0,0.0113311]
[1766256876045,0.0028,88309.0,88287.0,0.0396916]
[1766256879250,0.0028,88309.0,88287.0,0.10087486]
[1766256880249,0.02489431,88308.0,88287.0,0.10087486]
[1766256880549,0.01124,88307.0,88287.0,0.10087486]
[1766256882354,0.01124,88307.0,88288.0,0.06118326]
[1766256889452,0.0113289,88310.0,88288.0,0.06118326]
[1766256889650,0.0042,88307.0,88288.0,0.06118326]
[1766256895054,0.0155292,88307.0,88288.0,0.06118326]
[1766256895943,0.0113296,88304.0,88288.0,0.06118326]
[1766256896149,0.01133,88301.0,88286.0,0.06118326]
[1766256897157,0.01133,88301.0,88285.0,0.06118326]
[1766256903963,0.0113295,88305.0,88285.0,0.06118326]
[1766256905963,0.0113295,88305.0,88286.0,0.06118326]
[1766256907559,0.0042,88307.0,88287.0,0.0113317]
[1766256910566,0.0113293,88306.0,88287.0,0.0113317]
[1766256916772,0.0042,88307.0,88286.0,0.06118326]
[1766256916967,0.0113297,88303.0,88286.0,0.06118326]
[1766256922181,0.0113297,88303.0,88287.0,0.06118326]
[1766256922479,0.0155292,88307.0,88287.0,0.06118326]
[1766256923982,0.0113296,88304.0,88287.0,0.06118326]
[1766256925487,0.22825927,88300.0,88287.0,0.06118326]
[1766256925672,0.02836,88299.0,88287.0,0.06118326]
[1766256925985,0.02836,88299.0,88286.0,0.06118326]
[1766256926584,0.02836,88299.0,88287.0,0.06118326]
[1766256928490,0.22825927,88300.0,88286.0,0.07251516]
[1766256928787,0.02836,88299.0,88287.0,0.06118326]
[1766256931991,0.02836,88299.0,88286.0,0.06118326]
[1766256950312,0.02836,88299.0,88286.0,0.06114326]
[1766256955418,0.02836,88299.0,88283.0,0.01150216]
[1766256967327,0.02836,88299.0,88283.0,0.00016986]
[1766256967726,0.02836,88299.0,88284.0,0.0113321]
[1766256970420,0.02836,88299.0,88286.0,0.06108738]
[1766256996352,0.02836,88299.0,88283.0,0.00016986]
[1766256996353,0.02836,88299.0,88287.0,0.06108738]
[1766256996854,0.02836,88299.0,88287.0,0.07241908]
[1766256997555,0.02836,88299.0,88287.0,0.06108738]
[1766256998252,0.02836,88299.0,88287.0,0.07241898]
[1766256999752,0.02836,88300.0,88288.0,0.06108738]
[1766256999952,0.02836,88300.0,88287.0,0.07241898]
[1766257004065,0.02836,88300.0,88287.0,0.06108738]
[1766257004250,0.02836,88300.0,88288.0,0.06108738]
[1766257004561,0.02836,88300.0,88289.0,0.0113315]
[1766257008865,0.22826225,88310.0,88292.0,0.011331]
[1766257009164,0.02508103,88309.0,88292.0,0.011331]
[1766257009369,0.02836,88309.0,88292.0,0.011331]
[1766257009866,0.0113286,88312.0,88292.0,0.011331]
[1766257010051,0.0534408,88311.0,88292.0,0.011331]
[1766257010252,0.0250808,88310.0,88292.0,0.011331]
[1766257010452,0.0250808,88309.0,88292.0,0.011331]
[1766257010661,0.02836,88311.0,88292.0,0.011331]
[1766257010861,0.02508047,88310.0,88292.0,0.011331]
[1766257011062,0.02508047,88309.0,88292.0,0.011331]
[1766257011255,0.02836,88311.0,88292.0,0.011331]
[1766257011454,0.02508023,88310.0,88292.0,0.011331]
[1766257011661,0.03640923,88309.0,88288.0,0.07241888]
[1766257011864,0.011329,88309.0,88288.0,0.07241888]
[1766257015868,0.09097156,88357.0,88288.0,0.46108738]
[1766257016070,3.69011728,88368.0,88290.0,0.0566568]
[1766257016272,0.0113109,88450.0,88367.0,0.0566073]
[1766257016472,2.68045442,88463.0,88429.0,0.03036953]
[1766257016769,0.22826225,88450.0,88438.0,3e-08]
[1766257016971,0.08286641,88439.0,88438.0,0.04049271]
[1766257017172,2.59758801,88459.0,88438.0,0.05843534]
[1766257017371,0.0113081,88472.0,88439.0,0.05843534]
[1766257017674,0.011308,88473.0,88442.0,0.0402121]
[1766257017872,0.0113085,88469.0,88443.0,0.05843534]
[1766257018076,0.01105634,88495.0,88459.0,0.4565245]
[1766257018267,0.00248,88494.0,88446.0,0.04005477]
[1766257018577,2.59758801,88498.0,88440.0,0.22926224]
[1766257018578,0.011309,88465.0,88440.0,0.22926224]
[1766257018874,0.00364,88464.0,88440.0,0.00099999]
[1766257019074,0.00364,88464.0,88420.0,0.22826225]
[1766257019075,0.22826225,88450.0,88432.0,6e-08]
[1766257019268,0.02856,88449.0,88420.0,0.22826225]
[1766257020263,0.00016955,88443.0,88426.0,0.00016955]
[1766257020766,0.0018,88442.0,88426.0,0.00016955]
[1766257021568,0.00016955,88443.0,88426.0,0.00016955]
[1766257021772,2.60026801,88442.0,88426.0,0.00016955]
[1766257024065,2.60026801,88442.0,88418.0,0.06156983]
[1766257024270,0.011312,88441.0,88415.0,0.0618955]
[1766257024473,0.011312,88441.0,88415.0,0.02852]
[1766257025172,0.011312,88441.0,88419.0,0.00016955]
[1766257026179,0.02852,88440.0,88419.0,0.00016955]
[1766257026374,2.53442337,88442.0,88419.0,0.00016955]
[1766257026571,0.02852,88439.0,88419.0,0.00016955]
[1766257030274,0.02852,88439.0,88420.0,0.04074882]
[1766257030480,0.02852,88439.0,88421.0,0.04074882]
[1766257030783,0.02852,88439.0,88422.0,0.04074882]
[1766257031082,0.02852,88439.0,88423.0,0.04074882]
[1766257031271,0.02852,88439.0,88419.0,0.00016955]
[1766257031272,0.02852,88439.0,88424.0,0.04074882]
[1766257031472,0.02852,88438.0,88425.0,0.04074882]
[1766257031767,0.02852,88438.0,88426.0,0.04074882]
[1766257032071,0.02852,88438.0,88427.0,0.04074882]
[1766257032272,0.02848,88437.0,88428.0,0.04074882]
[1766257032472,0.02848,88437.0,88429.0,0.04074882]
[1766257032674,0.02848,88437.0,88430.0,0.04074882]
[1766257032967,0.02848,88437.0,88431.0,2e-08]
[1766257033176,0.02848,88437.0,88419.0,0.00016955]
[1766257033377,0.02848,88437.0,88420.0,0.01768591]
[1766257033682,0.02848,88437.0,88421.0,0.01768591]
[1766257033881,0.02848,88437.0,88422.0,0.01768591]
[1766257034082,0.02848,88437.0,88419.0,0.00016955]
[1766257034282,0.02848,88437.0,88420.0,0.01768591]
[1766257034480,0.02848,88437.0,88421.0,0.01768591]
[1766257034680,0.02848,88437.0,88422.0,0.01768591]
[1766257034983,0.02848,88437.0,88419.0,0.00016955]
[1766257035285,0.02848,88437.0,88420.0,0.01768591]
[1766257035472,0.02848,88437.0,88411.0,0.0397958]
[1766257035671,2.51313244,88436.0,88411.0,0.0397958]
[1766257036578,2.51313244,88436.0,88415.0,0.00016955]
[1766257039285,2.42144891,88436.0,88419.0,0.05968651]
[1766257039484,2.42144891,88436.0,88415.0,0.00016955]
[1766257039983,0.0397926,88437.0,88415.0,0.00016955]
[1766257040185,0.0397926,88437.0,88415.0,0.05985606]
[1766257040389,0.0397926,88437.0,88416.0,0.05968651]
[1766257040585,0.0397926,88437.0,88415.0,0.00016955]
[1766257041087,0.0397926,88437.0,88416.0,0.05968651]
[1766257041487,0.0397926,88437.0,88417.0,0.05968651]
[1766257041690,2.42144891,88436.0,88417.0,0.05968651]
[1766257041890,0.0113128,88435.0,88417.0,0.05968651]
[1766257042090,2.42144891,88436.0,88420.0,0.05968651]
[1766257042285,2.42144891,88436.0,88421.0,0.05968651]
[1766257042485,2.42144891,88436.0,88415.0,0.00016955]
[1766257044088,2.2992042,88436.0,88415.0,0.00016955]
[1766257045178,2.2992042,88436.0,88417.0,0.08098542]
[1766257045385,2.29184688,88436.0,88418.0,0.03539381]
[1766257045581,2.29184688,88436.0,88415.0,0.00016955]
[1766257045582,2.29184688,88436.0,88419.0,0.03539381]
[1766257045785,1.92511276,88436.0,88427.0,0.10210355]
[1766257046093,1.61950099,88436.0,88415.0,0.00016955]
[1766257046290,1.61950099,88436.0,88418.0,0.0113148]
[1766257046595,1.61950099,88436.0,88420.0,0.2275764]
[1766257046596,1.55837773,88436.0,88420.0,0.2275764]
[1766257046794,1.55837773,88436.0,88420.0,0.3470764]
[1766257046995,0.02848,88435.0,88420.0,0.3470764]
[1766257047189,0.02848,88435.0,88420.0,0.1195]
[1766257047396,0.02848,88435.0,88420.0,0.3470764]
[1766257047693,0.02848,88435.0,88415.0,0.00016955]
[1766257047694,0.02848,88435.0,88410.0,0.2560564]
[1766257047892,0.0113131,88433.0,88410.0,0.2560564]
[1766257048089,0.02848,88435.0,88410.0,0.33702077]
[1766257048399,0.01744369,88435.0,88429.0,0.04050177]
[1766257048584,0.01744369,88435.0,88425.0,0.04050177]
[1766257049090,0.01744369,88435.0,88426.0,0.04050177]
[1766257049392,0.02848,88434.0,88427.0,0.04050177]
[1766257049591,0.02848,88434.0,88421.0,0.00016955]
[1766257049592,0.02848,88434.0,88425.0,0.04050177]
[1766257049790,0.02848,88434.0,88421.0,0.00016955]
[1766257050194,0.02848,88434.0,88420.0,0.01770177]
[1766257050389,0.2275764,88430.0,88411.0,0.0113158]
[1766257050586,0.02848,88429.0,88411.0,0.0113158]
[1766257051188,0.02848,88429.0,88411.0,0.01148535]
[1766257051590,0.0137649,88429.0,88411.0,0.01148535]
[1766257052094,0.0137649,88429.0,88414.0,0.0113154]
[1766257054700,0.0137649,88429.0,88411.0,0.00016955]
[1766257054896,1.55837773,88428.0,88411.0,0.00016955]
[1766257056587,1.55837773,88428.0,88412.0,0.0113157]
[1766257057702,1.5436626,88428.0,88412.0,0.0113157]
[1766257058493,1.53262632,88428.0,88412.0,0.0113157]
[1766257059594,1.53262632,88428.0,88413.0,0.01768633]
[1766257059799,1.53262632,88428.0,88414.0,0.01768633]
[1766257060000,1.53262632,88428.0,88415.0,0.01768633]
[1766257060199,1.53262632,88428.0,88416.0,0.01768633]
[1766257060400,1.52526881,88428.0,88417.0,0.01768633]
[1766257060700,1.50687503,88428.0,88418.0,0.01768633]
[1766257060896,1.50687503,88428.0,88419.0,0.01768633]
[1766257061199,1.50687503,88428.0,88412.0,0.0113157]
[1766257062489,1.50687503,88428.0,88419.0,0.06080135]
[1766257062892,1.50687503,88428.0,88418.0,0.03620135]
[1766257063188,1.50687503,88428.0,88412.0,0.0113157]
[1766257063598,1.49215999,88428.0,88412.0,0.0113157]
[1766257066899,1.49215999,88428.0,88411.0,0.02860955]
[1766257068498,1.48112348,88428.0,88411.0,0.02860955]
[1766257069702,1.46640813,88428.0,88411.0,0.02860955]
[1766257069999,1.46640813,88427.0,88411.0,0.00016955]
[1766257070203,0.0113148,88420.0,88400.0,0.00014501]
[1766257070502,0.2275999,88421.0,88400.0,0.02858501]
[1766257070503,0.0113151,88417.0,88400.0,0.02858501]
[1766257070691,0.2275999,88410.0,88400.0,0.02858501]
[1766257070888,0.02844,88412.0,88400.0,0.02858501]
[1766257071406,0.02844,88412.0,88400.0,0.25618491]
[1766257072593,0.02844,88412.0,88400.0,0.02858501]
[1766257072793,0.02844,88412.0,88400.0,0.25618491]
[1766257073006,0.02844,88412.0,88401.0,0.01768958]
[1766257073202,0.02844,88412.0,88402.0,0.01768958]
[1766257073503,0.02844,88412.0,88400.0,0.25618491]
[1766257074900,0.02844,88412.0,88401.0,0.0113171]
[1766257075301,0.02108115,88412.0,88401.0,0.0113171]
[1766257076100,1.46640813,88411.0,88401.0,0.0113171]
[1766257078908,1.46640813,88411.0,88400.0,0.25618491]
[1766257078909,0.02844,88439.0,88416.0,0.0113151]
[1766257079100,0.02851448,88438.0,88420.0,0.2275999]
[1766257079300,0.02851448,88437.0,88420.0,0.2275999]
[1766257079509,0.05695448,88436.0,88420.0,0.2275999]
[1766257079805,0.02844,88436.0,88420.0,0.2275999]
[1766257081205,0.02844,88435.0,88421.0,0.0113146]
[1766257082907,0.00016965,88437.0,88421.0,0.0113146]
[1766257083213,0.4551998,88431.0,88400.0,0.00014501]
[1766257083405,0.02844,88434.0,88395.0,0.00172]
[1766257083409,0.2275999,88410.0,88395.0,0.00172]
[1766257083607,0.02844,88409.0,88395.0,0.1195]
[1766257083913,0.02844,88409.0,88395.0,0.08442]
[1766257084506,0.00012789,88408.0,88395.0,0.08442]
[1766257084908,0.01144419,88408.0,88395.0,0.08442]
[1766257085108,0.00012789,88408.0,88395.0,0.08442]
[1766257085502,0.00012789,88408.0,88396.0,0.01769071]
[1766257085703,0.00012789,88408.0,88397.0,0.01769071]
[1766257086002,0.00012789,88408.0,88398.0,0.01769071]
[1766257086307,0.00012789,88408.0,88399.0,0.01769071]
[1766257086504,0.00012789,88408.0,88400.0,0.01769071]
[1766257086704,0.00012789,88408.0,88401.0,0.01769071]
[1766257087005,0.00012789,88408.0,88402.0,0.01769071]
[1766257087305,0.00012789,88408.0,88403.0,0.01769071]
[1766257087508,0.00012789,88408.0,88404.0,0.01769071]
[1766257087708,0.00012789,88408.0,88405.0,0.01769071]
[1766257087907,0.0113164,88407.0,88384.0,0.02844]
[1766257088110,0.2275999,88400.0,88384.0,0.02844]
[1766257088412,0.01276,88399.0,88381.0,0.0397596]
[1766257089618,0.01276,88399.0,88378.0,0.02844]
[1766257090306,0.00540027,88399.0,88378.0,0.02844]
[1766257091618,0.00540027,88399.0,88381.0,0.0113196]
[1766257091820,0.00540027,88399.0,88384.0,0.0113192]
[1766257095918,0.00540027,88399.0,88380.0,0.0113198]
[1766257096119,0.00540027,88399.0,88380.0,0.2389197]
[1766257097721,0.00540027,88399.0,88380.0,0.23909164]
[1766257099125,0.00540027,88399.0,88385.0,0.0113191]
[1766257099626,0.00540027,88399.0,88381.0,0.0113196]
[1766257099927,0.00540027,88399.0,88382.0,0.01769155]
[1766257100226,0.00540027,88399.0,88383.0,0.01769155]
[1766257100427,0.00540027,88399.0,88384.0,0.01769155]
[1766257100628,0.00540027,88399.0,88385.0,0.01769155]
[1766257100827,0.00540027,88399.0,88386.0,0.01769155]
[1766257101029,0.00540027,88399.0,88387.0,0.01769155]
[1766257101225,0.00540027,88399.0,88388.0,0.01769155]
[1766257101429,0.00540027,88399.0,88389.0,0.01769155]
[1766257101726,0.00540027,88399.0,88390.0,0.01769155]
[1766257101929,0.00540027,88399.0,88391.0,0.01769155]
[1766257102129,0.00540027,88399.0,88392.0,0.01769155]
[1766257102330,0.00540027,88399.0,88393.0,0.01769155]
[1766257102532,0.00540027,88399.0,88394.0,0.01769155]
[1766257102728,0.00540027,88399.0,88395.0,0.01769155]
[1766257102929,0.00540027,88399.0,88396.0,0.01769155]
[1766257103131,0.00540027,88399.0,88397.0,0.01769155]
[1766257103329,0.00540027,88399.0,88398.0,0.01769155]
[1766257105344,0.02844,88399.0,88398.0,0.01769155]
[1766257107031,0.02844,88399.0,88398.0,5e-08]
[1766257107642,0.011318,88395.0,88378.0,0.02844]
[1766257108135,0.22776651,88390.0,88371.0,0.0802]
[1766257108339,0.25620651,88390.0,88371.0,0.02844]
[1766257108637,0.00016965,88389.0,88371.0,0.02844]
[1766257110243,0.00016965,88389.0,88369.0,0.0113211]
[1766257110442,0.00016965,88389.0,88370.0,0.02844]
[1766257111037,0.0113188,88388.0,88365.0,0.0113217]
[1766257111342,0.00016965,88389.0,88364.0,0.00011586]
[1766257111343,0.22776651,88380.0,88364.0,0.00011586]
[1766257111540,0.03976,88379.0,88364.0,0.00011586]
[1766257111726,0.0113204,88376.0,88364.0,0.00011586]
[1766257111927,0.0113205,88375.0,88364.0,0.00011586]
[1766257112131,0.0113205,88375.0,88356.0,0.00112]
[1766257114138,0.0113205,88375.0,88354.0,0.00012701]
[1766257115140,0.0113212,88370.0,88354.0,0.00012701]
[1766257115649,0.0113216,88367.0,88354.0,0.00012701]
[1766257116534,0.0113213,88369.0,88354.0,0.00012701]
[1766257116734,0.22776651,88370.0,88354.0,0.00012701]
[1766257116735,0.0113217,88365.0,88354.0,0.00012701]
[1766257117441,0.0113213,88369.0,88354.0,0.00012701]
[1766257118245,0.22776651,88364.0,88354.0,0.00012701]
[1766257118441,0.02844,88364.0,88340.0,0.22776651]
[1766257118648,0.011322,88363.0,88346.0,0.02844]
[1766257118948,0.02844,88364.0,88346.0,0.02844]